fUSD/lending_fUSD_20250404
["ID","MTS","AMOUNT","RATE_DAILY","PERIOD"]
[357152313,1743802248498,-619.97,0.0004904,120]
[357152314,1743802248507,-500.0,0.00049041,16]
[357152315,1743802248517,-518.5303961,0.00049041,5]
[357152316,1743802248526,-500.0,0.00049041,2]
[357152317,1743802248536,-500.0,0.00049041,3]
[357152318,1743802248545,-500.0,0.00049041,120]
[357152319,1743802248555,-590.67034771,0.00049041,120]
[357152320,1743802248564,-500.0,0.00049041,120]
[357152321,1743802248574,-500.0,0.00049041,120]
[357152322,1743802248583,-500.0,0.00049041,120]
[357152323,1743802248593,-515.28155562,0.00049041,120]
[357152324,1743802248603,-301.67021339,0.00049041,120]
[357152325,1743802248612,-515.88244108,0.00049041,120]
[357152326,1743802248622,-500.0,0.00049041,2]
[357152327,1743802248631,-500.0,0.00049041,120]
[357152328,1743802248640,-616.82,0.00049041,120]
[357152329,1743802248650,-200.0,0.00049041,7]
[357152330,1743802248659,-500.0,0.00049041,120]
[357152331,1743802248668,-737.18,0.00049041,120]
[357152332,1743802248678,-500.0,0.00049041,10]
[357152333,1743802248688,-500.0,0.00049041,120]
[357152334,1743802248698,-1713.31,0.00049041,120]
[357152335,1743802248707,-518.73,0.00049041,120]
[357152336,1743802248717,-163.74724025,0.00049041,120]
[357152337,1743802248727,-500.0,0.00049041,120]
[357152338,1743802248737,-500.0,0.00049041,120]
[357152339,1743802248746,-598.76,0.00049041,120]
[357152340,1743802248755,-500.0,0.00049041,120]
[357152341,1743802248764,-500.0,0.00049041,120]
[357152342,1743802248773,-456.06000763,0.00049041,120]
[357152343,1743802248782,-532.78,0.00049041,120]
[357152344,1743802248791,-618.43981225,0.00049041,2]
[357152345,1743802248800,-366.85127687,0.00049041,120]
[357152346,1743802248810,-747.4,0.00049041,120]
[357152347,1743802248819,-500.0,0.00049041,2]
[357152348,1743802248829,-877.54,0.00049041,120]
[357152349,1743802248839,-500.0,0.00049041,120]
[357152350,1743802248848,-500.0,0.00049041,120]
[357152351,1743802248857,-500.0,0.00049041,120]
[357152352,1743802248867,-500.0,0.00049041,120]
[357152353,1743802248876,-500.0,0.00049041,120]
[357152354,1743802248886,-500.0,0.00049041,120]
[357152355,1743802248895,-500.0,0.00049041,120]
[357152356,1743802248904,-159.24849884,0.00049041,120]
[357152357,1743802248913,-500.0,0.00049041,120]
[357152358,1743802248922,-500.0,0.00049041,120]
[357152359,1743802248932,-500.0,0.00049041,120]
[357152360,1743802248941,-500.0,0.00049041,30]
[357152361,1743802248950,-500.0,0.00049041,120]
[357152362,1743802248960,-151.0,0.00049041,14]
[357152363,1743802248969,-500.0,0.00049041,120]
[357152364,1743802248978,-500.0,0.00049041,120]
[357152365,1743802248989,-500.0,0.00049041,120]
[357152366,1743802248998,-500.0,0.00049041,120]
[357152367,1743802249007,-500.0,0.00049041,120]
[357152368,1743802249017,-500.0,0.00049041,120]
[357152369,1743802249026,-500.0,0.00049041,120]
[357152370,1743802249035,-500.0,0.00049041,120]
[357152371,1743802249044,-500.0,0.00049041,120]
[357152372,1743802249054,-500.0,0.00049041,120]
[357152373,1743802249063,-500.0,0.00049041,120]
[357152374,1743802249073,-151.0,0.00049041,14]
[357152375,1743802249082,-500.0,0.00049041,120]
[357152376,1743802249093,-500.0,0.00049041,120]
[357152377,1743802249102,-500.0,0.00049041,120]
[357152378,1743802249112,-500.0,0.00049041,120]
[357152379,1743802249122,-243.58080392,0.00049041,120]
[357152380,1743802249131,-503.81,0.00049041,120]
[357152381,1743802249140,-500.0,0.00049041,120]
[357152382,1743802249150,-770.99,0.00049041,120]
[357152383,1743802249159,-500.0,0.00049041,120]
[357152384,1743802249168,-500.0,0.00049041,120]
[357152385,1743802249178,-728.81,0.00049041,120]
[357152386,1743802249187,-604.20801043,0.00049041,120]
[357152387,1743802249199,-169.86476197,0.00049041,120]
[357152388,1743802249208,-500.0,0.00049041,120]
[357152389,1743802249218,-500.0,0.00049041,120]
[357152390,1743802249227,-500.0,0.00049041,120]
[357152391,1743802249238,-500.0,0.00049041,120]
[357152392,1743802249247,-500.0,0.00049041,120]
[357152393,1743802249257,-500.0,0.00049041,120]
[357152394,1743802249267,-500.0,0.00049041,120]
[357152395,1743802249278,-500.0,0.00049041,120]
[357152396,1743802249289,-500.0,0.00049041,120]
[357152397,1743802249299,-500.0,0.00049041,120]
[357152398,1743802249308,-500.0,0.00049041,120]
[357152399,1743802249317,-500.0,0.00049041,120]
[357152400,1743802249327,-151.0,0.00049041,14]
[357152401,1743802249336,-234.07215368,0.00049041,120]
[357152402,1743802249346,-514.65909785,0.00049041,10]
[357152403,1743802249355,-500.0,0.00049041,120]
[357152404,1743802249365,-500.0,0.00049041,120]
[357152405,1743802249375,-1678.87,0.00049041,10]
[357152406,1743802249384,-500.0,0.00049041,120]
[357152407,1743802249394,-504.0299819,0.00049041,120]
[357152408,1743802249403,-500.0,0.00049041,7]
[357152409,1743802249413,-500.0,0.00049041,120]
[357152410,1743802249423,-500.0,0.00049041,120]
[357152411,1743802249432,-801.14,0.00049041,120]
[357152412,1743802249442,-500.0,0.00049041,12]
[357152413,1743802249451,-513.34294635,0.00049041,120]
[357152414,1743802249461,-500.0,0.00049041,30]
[357152415,1743802249471,-151.0,0.00049041,14]
[357152416,1743802249480,-500.0,0.00049041,120]
[357152417,1743802249490,-500.0,0.00049041,120]
[357152418,1743802249499,-500.0,0.00049041,30]
[357152419,1743802249509,-2000.0,0.00049041,2]
[357152420,1743802249518,-500.0,0.00049041,120]
[357152421,1743802249527,-535.46286945,0.00049041,120]
[357152422,1743802249536,-538.49,0.00049041,120]
[357152423,1743802249545,-151.0,0.00049041,14]
[357152424,1743802249554,-500.0,0.00049041,120]
[357152425,1743802249563,-500.0,0.00049041,120]
[357152426,1743802249573,-151.0,0.00049041,14]
[357152427,1743802249582,-400.76903112,0.00049041,120]
[357152428,1743802249592,-2901.01,0.00049041,2]
[357152429,1743802249601,-222.87730729,0.00049041,120]
[357152430,1743802249610,-151.0,0.00049041,14]
[357152431,1743802249620,-151.0,0.00049041,14]
[357152432,1743802249629,-268.40058625,0.00049041,120]
[357152433,1743802249638,-323.09107961,0.00049041,120]
[357152434,1743802249648,-500.0,0.00049041,120]
[357152435,1743802249657,-206.201175,0.00049041,14]
[357152436,1743802249666,-227.317871,0.00049041,14]
[357152437,1743802249675,-500.0,0.00049041,120]
[357152438,1743802249684,-227.317871,0.00049041,14]
[357152439,1743802249694,-551.2,0.00049041,120]
[357152440,1743802249703,-930.02,0.00049041,120]
[357152441,1743802249713,-500.0,0.00049041,120]
[357152442,1743802249722,-500.0,0.00049041,7]
[357152443,1743802249731,-634.77,0.00049041,120]
[357152444,1743802249740,-500.0,0.00049041,120]
[357152445,1743802249749,-220.07888574,0.00049041,120]
[357152446,1743802249758,-365.1,0.00049041,14]
[357152447,1743802249767,-500.0,0.00049041,120]
[357152448,1743802249776,-174.60936735,0.00049041,120]
[357152449,1743802249785,-365.1,0.00049041,14]
[357152450,1743802249795,-857.64,0.00049041,120]
[357152451,1743802249804,-500.0,0.00049041,120]
[357152452,1743802249813,-500.0,0.00049041,120]
[357152453,1743802249822,-500.0,0.00049041,120]
[357152454,1743802249831,-500.0,0.00049041,120]
[357152455,1743802249841,-500.0,0.00049041,120]
[357152456,1743802249850,-500.0,0.00049041,120]
[357152457,1743802249860,-656.24,0.00049041,120]
[357152458,1743802249869,-500.0,0.00049041,120]
[357152459,1743802249878,-500.0,0.00049041,120]
[357152460,1743802249887,-500.0,0.00049041,120]
[357152461,1743802249897,-500.0,0.00049041,120]
[357152462,1743802249906,-592.91656909,0.00049041,120]
[357152463,1743802249915,-500.0,0.00049041,120]
[357152464,1743802249924,-500.0,0.00049041,120]
[357152465,1743802249933,-169.51348153,0.00049041,120]
[357152466,1743802249942,-500.0,0.00049041,120]
[357152467,1743802249952,-500.0,0.00049041,10]
[357152468,1743802249962,-500.0,0.00049041,120]
[357152469,1743802249973,-548.99503864,0.00049041,120]
[357152470,1743802249982,-500.0,0.00049041,120]
[357152471,1743802249991,-500.0,0.00049041,120]
[357152472,1743802250000,-442.66621602,0.00049041,120]
[357152473,1743802250010,-500.0,0.00049041,120]
[357152474,1743802250018,-421.86540039,0.00049041,120]
[357152475,1743802250028,-664.22,0.00049041,120]
[357152476,1743802250037,-500.0,0.00049041,120]
[357152477,1743802250130,-500.0,0.00049041,120]
[357152478,1743802250152,-500.0,0.00049041,120]
[357152479,1743802250161,-500.0,0.00049041,120]
[357152480,1743802250170,-500.0,0.00049041,120]
[357152481,1743802250179,-500.0,0.00049041,120]
[357152482,1743802250188,-443.63563698,0.00049041,120]
[357152483,1743802250200,-500.0,0.00049041,120]
[357152484,1743802250209,-1644.01,0.00049041,120]
[357152485,1743802250218,-549.7,0.00049041,120]
[357152486,1743802250227,-500.0,0.00049041,120]
[357152487,1743802250237,-500.0,0.00049041,120]
[357152488,1743802250246,-500.0,0.00049041,120]
[357152489,1743802250255,-651.07,0.00049041,120]
[357152490,1743802250264,-1709.81,0.00049041,120]
[357152491,1743802250273,-169.91980135,0.00049041,120]
[357152492,1743802250283,-4524.01,0.00049041,7]
[357152493,1743802250292,-500.0,0.00049041,120]
[357152494,1743802250301,-500.0,0.00049041,120]
[357152495,1743802250310,-500.0,0.00049041,120]
[357152496,1743802250319,-1087.55,0.00049041,120]
[357152497,1743802250328,-500.0,0.00049041,120]
[357152498,1743802250337,-578.75664656,0.00049041,120]
[357152499,1743802250346,-768.62,0.00049041,120]
[357152500,1743802250355,-500.0,0.00049041,120]
[357152501,1743802250364,-895.47,0.00049041,120]
[357152502,1743802250373,-524.81894538,0.00049041,120]
[357152503,1743802250381,-500.0,0.00049041,120]
[357152504,1743802250390,-500.0,0.00049041,120]
[357152505,1743802250399,-529.81,0.00049041,120]
[357152506,1743802250408,-500.0,0.00049041,120]
[357152507,1743802250418,-500.0,0.00049041,120]
[357152508,1743802250427,-878.05,0.00049041,120]
[357152509,1743802250437,-500.0,0.00049041,120]
[357152510,1743802250446,-500.0,0.00049041,120]
[357152511,1743802250455,-500.0,0.00049041,120]
[357152512,1743802250465,-1182.64,0.00049041,120]
[357152513,1743802250474,-500.0,0.00049041,120]
[357152514,1743802250482,-175.11929874,0.00049041,120]
[357152515,1743802250492,-500.0,0.00049041,120]
[357152516,1743802250501,-500.0,0.00049041,120]
[357152517,1743802250509,-500.0,0.00049041,120]
[357152518,1743802250519,-500.0,0.00049041,120]
[357152519,1743802250529,-500.0,0.00049041,2]
[357152520,1743802250538,-4547.92,0.00049041,120]
[357152521,1743802250548,-500.0,0.00049041,120]
[357152522,1743802250557,-500.0,0.00049041,120]
[357152523,1743802250566,-500.0,0.00049041,120]
[357152524,1743802250575,-1308.55,0.00049041,120]
[357152525,1743802250584,-500.0,0.00049041,120]
[357152526,1743802250593,-500.0,0.00049041,120]
[357152527,1743802250602,-757.51,0.00049041,120]
[357152528,1743802250612,-500.0,0.00049041,120]
[357152529,1743802250621,-500.0,0.00049041,120]
[357152530,1743802250630,-500.0,0.00049041,120]
[357152531,1743802250639,-500.0,0.00049041,120]
[357152532,1743802250648,-500.0,0.00049041,120]
[357152533,1743802250657,-500.0,0.00049041,2]
[357152534,1743802250666,-877.04,0.00049041,120]
[357152535,1743802250675,-500.0,0.00049041,120]
[357152536,1743802250685,-500.0,0.00049041,120]
[357152537,1743802250694,-500.0,0.00049041,120]
[357152538,1743802250703,-500.0,0.00049041,120]
[357152539,1743802250712,-938.85,0.00049041,120]
[357152540,1743802250721,-500.0,0.00049041,120]
[357152541,1743802250730,-500.0,0.00049041,120]
[357152542,1743802250739,-2314.25,0.00049041,120]
[357152543,1743802250748,-500.0,0.00049041,120]
[357152544,1743802250757,-500.0,0.00049041,120]
[357152545,1743802250767,-500.0,0.00049041,120]
[357152546,1743802250777,-500.0,0.00049041,2]
[357152547,1743802250786,-500.0,0.00049041,120]
[357152548,1743802250796,-500.0,0.00049041,120]
[357152549,1743802250805,-500.0,0.00049041,100]
[357152550,1743802250814,-500.0,0.00049041,120]
[357152551,1743802250823,-1032.69,0.00049041,120]
[357152552,1743802250832,-500.0,0.00049041,2]
[357152553,1743802250842,-500.0,0.00049041,120]
[357152554,1743802250851,-500.0,0.00049041,120]
[357152555,1743802250861,-5000.0,0.00049046,30]
[357152556,1743802250871,-150.0,0.0004908,7]
[357152557,1743802250880,-230029.89,0.000491,60]
[357152558,1743802250890,-150.0,0.00049137,7]
[357152559,1743802250899,-2617.72,0.00049146,30]
[357152560,1743802250908,-150.0,0.00049176,7]
[357152561,1743802250917,-1832.27,0.00049182,30]
[357152562,1743802250926,-150.0,0.00049182,7]
[357152563,1743802250935,-150.0,0.00049188,7]
[357152564,1743802250944,-5000.0,0.00049193,30]
[357152565,1743802250953,-961.73,0.00049197,30]
[357152566,1743802250962,-150.0,0.00049209,7]
[357152567,1743802250971,-3675.52,0.00049261,30]
[357152568,1743802250980,-500.0,0.00049282,120]
[357152569,1743802250989,-500.0,0.00049282,120]
[357152570,1743802250998,-500.0,0.00049282,120]
[357152571,1743802251007,-437.72,0.00049282,120]
[357152572,1743802251016,-500.0,0.00049282,120]
[357152573,1743802251025,-500.0,0.00049282,120]
[357152574,1743802251033,-500.0,0.00049282,120]
[357152575,1743802251043,-500.0,0.00049282,120]
[357152576,1743802251052,-500.0,0.00049282,120]
[357152577,1743802251061,-500.0,0.00049282,120]
[357152578,1743802251070,-500.0,0.00049282,120]
[357152579,1743802251079,-500.0,0.00049282,120]
[357152580,1743802251089,-500.0,0.00049282,120]
[357152581,1743802251098,-500.0,0.00049282,120]
[357152582,1743802251107,-500.0,0.00049282,120]
[357152583,1743802251117,-500.0,0.00049282,120]
[357152584,1743802251126,-500.0,0.00049282,120]
[357152585,1743802251135,-500.0,0.00049282,120]
[357152586,1743802251144,-500.0,0.00049282,120]
[357152587,1743802251153,-500.0,0.00049282,120]
[357152588,1743802251162,-500.0,0.00049282,120]
[357152589,1743802251171,-500.0,0.00049282,120]
[357152590,1743802251181,-500.0,0.00049282,120]
[357152591,1743802251190,-500.0,0.00049282,120]
[357152592,1743802251202,-500.0,0.00049282,120]
[357152593,1743802251211,-500.0,0.00049282,120]
[357152594,1743802251220,-500.0,0.00049282,120]
[357152595,1743802251230,-500.0,0.00049282,120]
[357152596,1743802251239,-500.0,0.00049282,120]
[357152597,1743802251249,-500.0,0.00049282,120]
[357152598,1743802251258,-500.0,0.00049282,120]
[357152599,1743802251267,-500.0,0.00049282,120]
[357152600,1743802251278,-500.0,0.00049282,120]
[357152601,1743802251288,-500.0,0.00049282,120]
[357152602,1743802251297,-500.0,0.00049282,120]
[357152603,1743802251308,-500.0,0.00049282,120]
[357152604,1743802251317,-500.0,0.00049282,120]
[357152605,1743802251326,-500.0,0.00049282,120]
[357152606,1743802251335,-500.0,0.00049282,120]
[357152607,1743802251344,-500.0,0.00049282,120]
[357152608,1743802251353,-500.0,0.00049282,120]
[357152609,1743802251363,-500.0,0.00049282,120]
[357152610,1743802251372,-500.0,0.00049282,120]
[357152611,1743802251381,-500.0,0.00049282,120]
[357152612,1743802251390,-500.0,0.00049282,120]
[357152613,1743802251400,-500.0,0.00049282,120]
[357152614,1743802251410,-266.43,0.00049282,120]
[357152615,1743802251419,-500.0,0.00049289,2]
[357152616,1743802251428,-5000.0,0.0004929,30]
[357152617,1743802251437,-150.0,0.00049296,7]
[357152618,1743802251446,-543.777,0.000493,120]
[357152619,1743802251455,-543.777,0.000493,120]
[357152620,1743802251464,-543.778,0.000493,120]
[357152621,1743802251473,-543.777,0.000493,120]
[357152622,1743802251483,-543.778,0.000493,120]
[357152623,1743802251492,-5026.12,0.000493,14]
[357152624,1743802251502,-150.0,0.00049301,14]
[357152625,1743802251511,-500.0,0.00049314,120]
[357152626,1743802251521,-619.97,0.00049314,120]
[357152627,1743802251530,-500.0,0.00049315,120]
[357152628,1743802251539,-500.0,0.00049315,120]
[357152629,1743802251549,-500.0,0.00049315,120]
[357152630,1743802251558,-500.0,0.00049315,120]
[357152631,1743802251568,-500.0,0.00049315,120]
[357152632,1743802251577,-500.0,0.00049315,120]
[357152633,1743802251587,-500.0,0.00049315,120]
[357152634,1743802251596,-500.0,0.00049315,120]
[357152635,1743802251605,-500.0,0.00049315,120]
[357152636,1743802251614,-500.0,0.00049315,120]
[357152637,1743802251624,-500.0,0.00049315,120]
[357152638,1743802251635,-500.0,0.00049315,120]
[357152639,1743802251644,-500.0,0.00049315,120]
[357152640,1743802251654,-500.0,0.00049315,120]
[357152641,1743802251663,-500.0,0.00049315,120]
[357152642,1743802251672,-500.0,0.00049315,120]
[357152643,1743802251681,-500.0,0.00049315,120]
[357152644,1743802251691,-500.0,0.00049315,120]
[357152645,1743802251700,-480.43869945,0.00049315,120]
[357152646,1743802251710,-500.0,0.00049315,120]
[357152647,1743802251720,-500.0,0.00049315,120]
[357152648,1743802251729,-500.0,0.00049315,120]
[357152649,1743802251738,-500.0,0.00049315,120]
[357152650,1743802251748,-450.0,0.00049315,120]
[357152651,1743802251758,-2011.92814515,0.00049315,120]
[357152652,1743802251767,-2011.92814515,0.00049315,120]
[357152653,1743802251776,-500.0,0.00049315,120]
[357152654,1743802251786,-500.0,0.00049315,120]
[357152655,1743802251795,-500.0,0.00049315,120]
[357152656,1743802251804,-500.0,0.00049315,120]
[357152657,1743802251813,-500.0,0.00049315,120]
[357152658,1743802251823,-500.0,0.00049315,120]
[357152659,1743802251832,-500.0,0.00049315,120]
[357152660,1743802251842,-500.0,0.00049315,120]
[357152661,1743802251851,-500.0,0.00049315,120]
[357152662,1743802251861,-500.0,0.00049315,120]
[357152663,1743802251870,-500.0,0.00049315,120]
[357152664,1743802251880,-500.0,0.00049315,120]
[357152665,1743802251889,-500.0,0.00049315,120]
[357152666,1743802251899,-500.0,0.00049315,120]
[357152667,1743802251908,-500.0,0.00049315,120]
[357152668,1743802251918,-500.0,0.00049315,120]
[357152669,1743802251927,-500.0,0.00049315,120]
[357152670,1743802251937,-500.0,0.00049315,120]
[357152671,1743802251946,-500.0,0.00049315,120]
[357152672,1743802251955,-500.0,0.00049315,120]
[357152673,1743802251964,-416.4923491,0.00049315,120]
[357152674,1743802251973,-500.0,0.00049315,120]
[357152675,1743802251983,-500.0,0.00049315,120]
[357152676,1743802251993,-500.0,0.00049315,120]
[357152677,1743802252002,-500.0,0.00049315,120]
[357152678,1743802252011,-500.0,0.00049315,120]
[357152679,1743802252020,-500.0,0.00049315,120]
[357152680,1743802252116,-500.0,0.00049315,120]
[357152681,1743802252127,-500.0,0.00049315,120]
[357152682,1743802252136,-500.0,0.00049315,120]
[357152683,1743802252145,-500.0,0.00049315,120]
[357152684,1743802252154,-500.0,0.00049315,120]
[357152685,1743802252163,-500.0,0.00049315,120]
[357152686,1743802252173,-500.0,0.00049315,120]
[357152687,1743802252182,-500.0,0.00049315,120]
[357152688,1743802252192,-500.0,0.00049315,120]
[357152689,1743802252206,-500.0,0.00049315,120]
[357152690,1743802252217,-500.0,0.00049315,120]
[357152691,1743802252226,-500.0,0.00049315,120]
[357152692,1743802252235,-500.0,0.00049315,120]
[357152693,1743802252246,-500.0,0.00049315,120]
[357152694,1743802252256,-500.0,0.00049315,120]
[357152695,1743802252265,-500.0,0.00049315,120]
[357152696,1743802252275,-500.0,0.00049315,120]
[357152697,1743802252284,-500.0,0.00049315,120]
[357152698,1743802252293,-500.0,0.00049315,120]
[357152699,1743802252303,-350.0,0.00049315,120]
[357152700,1743802252311,-500.0,0.00049315,120]
[357152701,1743802252321,-500.0,0.00049315,120]
[357152702,1743802252330,-500.0,0.00049315,16]
[357152703,1743802252340,-500.0,0.00049315,2]
[357152704,1743802252349,-416.10948836,0.00049315,3]
[357152705,1743802252359,-517.3183573,0.00049315,120]
[357152706,1743802252368,-537.96693723,0.00049315,120]
[357152707,1743802252377,-524.60394143,0.00049315,120]
[357152708,1743802252387,-500.0,0.00049315,120]
[357152709,1743802252397,-500.0,0.00049315,2]
[357152710,1743802252406,-500.0,0.00049315,120]
[357152711,1743802252416,-616.82,0.00049315,120]
[357152712,1743802252425,-200.0,0.00049315,7]
[357152713,1743802252434,-846.39235198,0.00049315,120]
[357152714,1743802252444,-846.39235198,0.00049315,120]
[357152715,1743802252453,-846.39235198,0.00049315,120]
[357152716,1743802252462,-846.39235198,0.00049315,120]
[357152717,1743802252471,-846.39235198,0.00049315,120]
[357152718,1743802252481,-846.39235198,0.00049315,120]
[357152719,1743802252490,-846.39235198,0.00049315,120]
[357152720,1743802252500,-846.39235198,0.00049315,120]
[357152721,1743802252509,-846.39235198,0.00049315,120]
[357152722,1743802252518,-846.39235198,0.00049315,120]
[357152723,1743802252527,-846.39235198,0.00049315,120]
[357152724,1743802252536,-846.39235198,0.00049315,120]
[357152725,1743802252546,-846.39235198,0.00049315,120]
[357152726,1743802252555,-846.39235198,0.00049315,120]
[357152727,1743802252564,-846.39235198,0.00049315,120]
[357152728,1743802252573,-846.39235198,0.00049315,120]
[357152729,1743802252582,-846.39235198,0.00049315,120]
[357152730,1743802252592,-846.39235198,0.00049315,120]
[357152731,1743802252601,-846.39235198,0.00049315,120]
[357152732,1743802252610,-846.39235198,0.00049315,120]
[357152733,1743802252620,-846.39235198,0.00049315,120]
[357152734,1743802252630,-846.39235198,0.00049315,120]
[357152735,1743802252639,-846.39235198,0.00049315,120]
[357152736,1743802252649,-846.39235198,0.00049315,120]
[357152737,1743802252658,-846.39235198,0.00049315,120]
[357152738,1743802252667,-846.39235198,0.00049315,120]
[357152739,1743802252677,-846.39235198,0.00049315,120]
[357152740,1743802252686,-846.39235198,0.00049315,120]
[357152741,1743802252695,-846.39235198,0.00049315,120]
[357152742,1743802252705,-846.39235198,0.00049315,120]
[357152743,1743802252715,-846.39235198,0.00049315,120]
[357152744,1743802252726,-846.39235198,0.00049315,120]
[357152745,1743802252736,-846.39235198,0.00049315,120]
[357152746,1743802252746,-846.39235198,0.00049315,120]
[357152747,1743802252757,-846.39235198,0.00049315,120]
[357152748,1743802252767,-846.39235198,0.00049315,120]
[357152749,1743802252778,-846.39235198,0.00049315,120]
[357152750,1743802252787,-846.39235198,0.00049315,120]
[357152751,1743802252796,-500.0,0.00049315,120]
[357152752,1743802252805,-846.392352,0.00049315,120]
[357152753,1743802252814,-846.392352,0.00049315,120]
[357152754,1743802252823,-846.392352,0.00049315,120]
[357152755,1743802252832,-846.392352,0.00049315,120]
[357152756,1743802252842,-737.18,0.00049315,120]
[357152757,1743802252851,-500.0,0.00049315,10]
[357152758,1743802252860,-500.0,0.00049315,120]
[357152759,1743802252869,-1713.31,0.00049315,120]
[357152760,1743802252879,-518.73,0.00049315,120]
[357152761,1743802252889,-500.0,0.00049315,120]
[357152762,1743802252898,-500.0,0.00049315,120]
[357152763,1743802252908,-598.76,0.00049315,120]
[357152764,1743802252917,-500.0,0.00049315,120]
[357152765,1743802252926,-500.0,0.00049315,120]
[357152766,1743802252935,-532.78,0.00049315,120]
[357152767,1743802252944,-747.4,0.00049315,120]
[357152768,1743802252954,-500.0,0.00049315,2]
[357152769,1743802252963,-877.54,0.00049315,120]
[357152770,1743802252972,-500.0,0.00049315,120]
[357152771,1743802252982,-500.0,0.00049315,120]
[357152772,1743802252992,-500.0,0.00049315,120]
[357152773,1743802253002,-391.5353458,0.00049315,120]
[357152774,1743802253012,-500.0,0.00049315,120]
[357152775,1743802253020,-260.27330261,0.00049315,120]
[357152776,1743802253031,-500.0,0.00049315,120]
[357152777,1743802253041,-500.0,0.00049315,30]
[357152778,1743802253053,-500.0,0.00049315,120]
[357152779,1743802253063,-151.0,0.00049315,14]
[357152780,1743802253072,-500.0,0.00049315,120]
[357152781,1743802253082,-500.0,0.00049315,120]
[357152782,1743802253092,-259.92752531,0.00049315,120]
[357152783,1743802253102,-500.0,0.00049315,120]
[357152784,1743802253111,-500.0,0.00049315,120]
[357152785,1743802253120,-345.64470407,0.00049315,120]
[357152786,1743802253130,-264.83196073,0.00049315,120]
[357152787,1743802253139,-500.0,0.00049315,120]
[357152788,1743802253148,-151.0,0.00049315,14]
[357152789,1743802253156,-500.0,0.00049315,120]
[357152790,1743802253165,-500.0,0.00049315,120]
[357152791,1743802253175,-500.0,0.00049315,120]
[357152792,1743802253184,-500.0,0.00049315,120]
[357152793,1743802253196,-503.81,0.00049315,120]
[357152794,1743802253208,-500.0,0.00049315,120]
[357152795,1743802253217,-770.99,0.00049315,120]
[357152796,1743802253227,-500.0,0.00049315,120]
[357152797,1743802253237,-258.32510544,0.00049315,120]
[357152798,1743802253247,-728.81,0.00049315,120]
[357152799,1743802253257,-273.08290956,0.00049315,120]
[357152800,1743802253267,-561.91302211,0.00049315,120]
[357152801,1743802253277,-500.0,0.00049315,120]
[357152802,1743802253287,-500.0,0.00049315,120]
[357152803,1743802253297,-500.0,0.00049315,120]
[357152804,1743802253307,-500.0,0.00049315,120]
[357152805,1743802253317,-240.89252329,0.00049315,120]
[357152806,1743802253327,-500.0,0.00049315,120]
[357152807,1743802253337,-501.22758794,0.00049315,120]
[357152808,1743802253347,-404.62825005,0.00049315,120]
[357152809,1743802253357,-500.0,0.00049315,120]
[357152810,1743802253367,-500.0,0.00049315,120]
[357152811,1743802253377,-151.0,0.00049315,14]
[357152812,1743802253387,-544.47003216,0.00049315,120]